[Event "Live Chess"]
[Site "Chess.com"]
[Date "2023.05.21"]
[Round "-"]
[White "rmethornhill"]
[Black "Driftboard"]
[Result "0-1"]
[WhiteElo "1156"]
[BlackElo "812"]
[TimeControl "300"]
[EndTime "0:03:08 PDT"]
[Termination "Driftboard won on time"]

1. d4 {[%clk 0:04:59.4]} 1... d5 {[%clk 0:04:58.3]} 2. c4 {[%clk 0:04:58]} 2...
dxc4 {[%clk 0:04:56.3]} 3. e3 {[%clk 0:04:56.5]} 3... Nf6 {[%clk 0:04:54.5]} 4.
Bxc4 {[%clk 0:04:54.9]} 4... Nc6 {[%clk 0:04:52]} 5. Nf3 {[%clk 0:04:52.5]} 5...
Bg4 {[%clk 0:04:50.7]} 6. O-O {[%clk 0:04:48.5]} 6... Bxf3 {[%clk 0:04:49.7]} 7.
Qxf3 {[%clk 0:04:47.1]} 7... e6 {[%clk 0:04:42.7]} 8. Bd2 {[%clk 0:04:39.4]}
8... Bb4 {[%clk 0:04:40]} 9. a3 {[%clk 0:04:35.5]} 9... Bxd2 {[%clk 0:04:38.2]}
10. Nxd2 {[%clk 0:04:34.8]} 10... O-O {[%clk 0:04:35.7]} 11. b4 {[%clk
0:04:26.8]} 11... Rb8 {[%clk 0:04:34]} 12. Rac1 {[%clk 0:04:19.8]} 12... a5
{[%clk 0:04:29.1]} 13. b5 {[%clk 0:04:15.3]} 13... Na7 {[%clk 0:04:21.9]} 14. a4
{[%clk 0:04:13.9]} 14... c6 {[%clk 0:04:19.6]} 15. Ra1 {[%clk 0:03:44.1]} 15...
cxb5 {[%clk 0:04:18.1]} 16. Bxb5 {[%clk 0:03:40.5]} 16... Nxb5 {[%clk
0:04:16.3]} 17. axb5 {[%clk 0:03:39]} 17... b6 {[%clk 0:04:13.8]} 18. Nc4 {[%clk
0:03:38.3]} 18... Nd5 {[%clk 0:04:07.9]} 19. e4 {[%clk 0:03:20]} 19... Ne7
{[%clk 0:04:01.4]} 20. Rfd1 {[%clk 0:03:17.2]} 20... Ng6 {[%clk 0:03:56.9]} 21.
d5 {[%clk 0:03:13.4]} 21... exd5 {[%clk 0:03:55.3]} 22. Rxd5 {[%clk 0:03:12]}
22... Qc7 {[%clk 0:03:46.8]} 23. Ne3 {[%clk 0:02:54.6]} 23... Ne5 {[%clk
0:03:42.7]} 24. Qh5 {[%clk 0:02:48.6]} 24... Ng6 {[%clk 0:03:34.9]} 25. h3
{[%clk 0:02:37.8]} 25... Nf4 {[%clk 0:03:26.7]} 26. Qg4 {[%clk 0:02:30.4]} 26...
Nxd5 {[%clk 0:03:25.3]} 27. Nf5 {[%clk 0:02:29.2]} 27... g6 {[%clk 0:03:19.5]}
28. Rd1 {[%clk 0:02:19.8]} 28... Nc3 {[%clk 0:03:11.6]} 29. Rd2 {[%clk
0:02:02.9]} 29... Nxb5 {[%clk 0:03:00.3]} 30. h4 {[%clk 0:01:55.1]} 30... Qc1+
{[%clk 0:02:58.1]} 31. Rd1 {[%clk 0:01:50.5]} 31... Qc6 {[%clk 0:02:24.3]} 32.
h5 {[%clk 0:01:25.7]} 32... Kh8 {[%clk 0:02:22.3]} 33. Ne7 {[%clk 0:01:13.6]}
33... Qe6 {[%clk 0:02:01.3]} 34. Qg5 {[%clk 0:01:07.8]} 34... gxh5 {[%clk
0:01:48.6]} 35. Nf5 {[%clk 0:00:43.6]} 35... Qg6 {[%clk 0:01:25]} 36. Qe7 {[%clk
0:00:33.7]} 36... Rbe8 {[%clk 0:01:04.2]} 37. Qd7 {[%clk 0:00:32.4]} 37... Nc3
{[%clk 0:00:28.7]} 38. Rd6 {[%clk 0:00:30.9]} 38... Ne2+ {[%clk 0:00:19.4]} 39.
Kf1 {[%clk 0:00:27.3]} 39... Qxd6 {[%clk 0:00:18.1]} 40. Nxd6 {[%clk 0:00:23.3]}
40... Rxe4 {[%clk 0:00:15.6]} 41. Nxf7+ {[%clk 0:00:20.9]} 41... Rxf7 {[%clk
0:00:14.3]} 42. Qxf7 {[%clk 0:00:19.9]} 42... Nd4 {[%clk 0:00:12]} 43. Qf6+
{[%clk 0:00:18]} 43... Kg8 {[%clk 0:00:09.8]} 44. Qd8+ {[%clk 0:00:16.3]} 44...
Kf7 {[%clk 0:00:09.2]} 45. Qd7+ {[%clk 0:00:15.2]} 45... Kf6 {[%clk 0:00:09]}
46. Qd6+ {[%clk 0:00:13]} 46... Kg5 {[%clk 0:00:08.4]} 47. Qd8+ {[%clk
0:00:11.1]} 47... Kg4 {[%clk 0:00:08]} 48. Qg8+ {[%clk 0:00:10.1]} 48... Kf5
{[%clk 0:00:07.4]} 49. Qc8+ {[%clk 0:00:06.9]} 49... Ke5 {[%clk 0:00:06.7]} 50.
Qe8+ {[%clk 0:00:04.6]} 50... Kf6 {[%clk 0:00:06.3]} 51. Qd8+ {[%clk 0:00:03.7]}
51... Kg6 {[%clk 0:00:05.6]} 52. Qxb6+ {[%clk 0:00:01.2]} 52... Kf7 {[%clk
0:00:05.3]} 53. Qb7+ {[%clk 0:00:00.3]} 53... Ke8 {[%clk 0:00:04.8]} 0-1

[Event "Live Chess"]
[Site "Chess.com"]
[Date "2023.05.21"]
[Round "-"]
[White "febray_27"]
[Black "smoggyrabbit"]
[Result "1-0"]
[WhiteElo "2006"]
[BlackElo "1731"]
[TimeControl "300"]
[EndTime "0:03:11 PDT"]
[Termination "febray_27 won on time"]

1. Nf3 {[%clk 0:04:57.5]} 1... e6 {[%clk 0:04:56.5]} 2. d4 {[%clk 0:04:54.9]}
2... Nf6 {[%clk 0:04:43.3]} 3. g3 {[%clk 0:04:52.4]} 3... h6 {[%clk 0:04:26.8]}
4. Bg2 {[%clk 0:04:51.2]} 4... Bb4+ {[%clk 0:04:15.1]} 5. c3 {[%clk 0:04:40.5]}
5... Be7 {[%clk 0:04:10.6]} 6. O-O {[%clk 0:04:39.5]} 6... O-O {[%clk
0:04:09.3]} 7. c4 {[%clk 0:04:37.3]} 7... d5 {[%clk 0:04:05.8]} 8. Nc3 {[%clk
0:04:31.3]} 8... c6 {[%clk 0:04:03.6]} 9. Re1 {[%clk 0:04:29.4]} 9... Ne4 {[%clk
0:03:55.9]} 10. Qc2 {[%clk 0:04:26.9]} 10... f5 {[%clk 0:03:51.5]} 11. Ne5
{[%clk 0:04:22]} 11... dxc4 {[%clk 0:03:20.3]} 12. Nxe4 {[%clk 0:04:13.4]} 12...
fxe4 {[%clk 0:03:17.9]} 13. Qxe4 {[%clk 0:04:12.6]} 13... Rf6 {[%clk 0:03:11.3]}
14. Nxc4 {[%clk 0:04:08]} 14... Qf8 {[%clk 0:03:09.3]} 15. Be3 {[%clk
0:04:03.5]} 15... Bb4 {[%clk 0:02:59.8]} 16. Rf1 {[%clk 0:03:53.4]} 16... Nd7
{[%clk 0:02:48.8]} 17. Ne5 {[%clk 0:03:46.6]} 17... Nxe5 {[%clk 0:02:42]} 18.
dxe5 {[%clk 0:03:45.5]} 18... Rf7 {[%clk 0:02:38.9]} 19. a3 {[%clk 0:03:38.7]}
19... Ba5 {[%clk 0:02:34.3]} 20. b4 {[%clk 0:03:34.2]} 20... Bc7 {[%clk
0:02:32.9]} 21. Bc5 {[%clk 0:03:33.6]} 21... Qd8 {[%clk 0:02:21.3]} 22. Rad1
{[%clk 0:03:31.8]} 22... Qg5 {[%clk 0:02:13.6]} 23. f4 {[%clk 0:03:06.9]} 23...
Qf5 {[%clk 0:02:02.2]} 24. Qxf5 {[%clk 0:03:01.2]} 24... Rxf5 {[%clk 0:02:00.7]}
25. Be4 {[%clk 0:02:54.9]} 25... Rf7 {[%clk 0:01:57.7]} 26. Bg6 {[%clk
0:02:46.9]} 26... Rd7 {[%clk 0:01:52.9]} 27. Bd6 {[%clk 0:02:37]} 27... Bb6+
{[%clk 0:01:44.5]} 28. Kg2 {[%clk 0:02:36.4]} 28... a5 {[%clk 0:01:39.8]} 29.
Be8 {[%clk 0:02:31]} 29... Rd8 {[%clk 0:01:38.1]} 30. Bg6 {[%clk 0:02:24.8]}
30... axb4 {[%clk 0:01:32.5]} 31. axb4 {[%clk 0:02:20.5]} 31... Ra2 {[%clk
0:01:28]} 32. Bd3 {[%clk 0:01:41.4]} 32... Bd7 {[%clk 0:01:01.8]} 33. Ra1 {[%clk
0:01:33.4]} 33... Rda8 {[%clk 0:00:54.1]} 34. Rxa2 {[%clk 0:01:30.3]} 34... Rxa2
{[%clk 0:00:54]} 35. Kf3 {[%clk 0:01:24.9]} 35... Ba7 {[%clk 0:00:41.9]} 36. Rd1
{[%clk 0:01:22]} 36... b6 {[%clk 0:00:38.7]} 37. Bg6 {[%clk 0:01:19.7]} 37... c5
{[%clk 0:00:33]} 38. bxc5 {[%clk 0:01:01.3]} 38... bxc5 {[%clk 0:00:17]} 39. Be7
{[%clk 0:00:39.7]} 39... Bc6+ {[%clk 0:00:15.7]} 40. Kg4 {[%clk 0:00:38.8]}
40... Bb6 {[%clk 0:00:11.6]} 41. Rd6 {[%clk 0:00:29.6]} 41... Rxe2 {[%clk
0:00:08.9]} 42. Rxc6 {[%clk 0:00:28.1]} 42... h5+ {[%clk 0:00:05.4]} 43. Kxh5
{[%clk 0:00:17.2]} 43... Rxh2+ {[%clk 0:00:03.9]} 44. Kg4 {[%clk 0:00:16.9]}
44... Rd2 {[%clk 0:00:01.3]} 45. Rxb6 {[%clk 0:00:15.2]} 1-0

[Event "Live Chess"]
[Site "Chess.com"]
[Date "2023.05.21"]
[Round "-"]
[White "Duke_of_Bebington"]
[Black "1PRK1"]
[Result "1-0"]
[WhiteElo "1585"]
[BlackElo "1358"]
[TimeControl "300"]
[EndTime "0:03:32 PDT"]
[Termination "Duke_of_Bebington won on time"]

1. e4 {[%clk 0:04:58.2]} 1... c5 {[%clk 0:04:52.5]} 2. c3 {[%clk 0:04:55.6]}
2... d5 {[%clk 0:04:47.3]} 3. exd5 {[%clk 0:04:54.1]} 3... Qxd5 {[%clk
0:04:45.3]} 4. d4 {[%clk 0:04:53.7]} 4... cxd4 {[%clk 0:04:43.3]} 5. cxd4 {[%clk
0:04:49.9]} 5... Nc6 {[%clk 0:04:38.2]} 6. Nf3 {[%clk 0:04:47.9]} 6... Bg4
{[%clk 0:04:31]} 7. Be2 {[%clk 0:04:46.9]} 7... O-O-O {[%clk 0:04:19.6]} 8. Nc3
{[%clk 0:04:37.4]} 8... Qa5 {[%clk 0:04:08.6]} 9. h3 {[%clk 0:04:27.1]} 9...
Bxf3 {[%clk 0:04:03.6]} 10. Bxf3 {[%clk 0:04:25.8]} 10... Rxd4 {[%clk
0:03:54.7]} 11. Qb3 {[%clk 0:04:15.4]} 11... Qe5+ {[%clk 0:03:33.6]} 12. Be3
{[%clk 0:04:12.5]} 12... e6 {[%clk 0:03:14.6]} 13. Bxc6 {[%clk 0:04:02.3]} 13...
bxc6 {[%clk 0:03:07.8]} 14. Rc1 {[%clk 0:03:47.3]} 14... Rb4 {[%clk 0:02:23.8]}
15. Qc2 {[%clk 0:03:35.6]} 15... Ne7 {[%clk 0:01:53.4]} 16. O-O {[%clk
0:03:28.8]} 16... Nf5 {[%clk 0:01:38.6]} 17. Ne4 {[%clk 0:03:04.3]} 17... Qxe4
{[%clk 0:01:28.7]} 18. Qxe4 {[%clk 0:02:56.2]} 18... Rxe4 {[%clk 0:01:27.5]} 19.
Bxa7 {[%clk 0:02:54.6]} 19... Kb7 {[%clk 0:01:20.5]} 20. Bc5 {[%clk 0:02:46.3]}
20... Bxc5 {[%clk 0:01:11.2]} 21. Rxc5 {[%clk 0:02:46.2]} 21... Rc8 {[%clk
0:01:06.7]} 22. Rfc1 {[%clk 0:02:38.9]} 22... Nd4 {[%clk 0:01:04.9]} 23. Kf1
{[%clk 0:02:34.3]} 23... Re2 {[%clk 0:00:51.3]} 24. R5c4 {[%clk 0:02:29.9]}
24... e5 {[%clk 0:00:48.3]} 25. Rxd4 {[%clk 0:02:27.8]} 25... Rxb2 {[%clk
0:00:44.1]} 26. Re4 {[%clk 0:02:20.5]} 26... f6 {[%clk 0:00:41.1]} 27. Ra4
{[%clk 0:02:17.7]} 27... Ra8 {[%clk 0:00:38.3]} 28. Rxa8 {[%clk 0:02:15.2]}
28... Kxa8 {[%clk 0:00:37.1]} 29. Rxc6 {[%clk 0:02:13.2]} 29... Rxa2 {[%clk
0:00:36.6]} 30. Rc7 {[%clk 0:02:11.1]} 30... Ra7 {[%clk 0:00:35.1]} 31. Rc1
{[%clk 0:02:05.8]} 31... Kb7 {[%clk 0:00:32.7]} 32. Ke2 {[%clk 0:02:04.8]} 32...
Ra6 {[%clk 0:00:29.5]} 33. g3 {[%clk 0:02:00.4]} 33... Rc6 {[%clk 0:00:28.9]}
34. Rb1+ {[%clk 0:01:58.5]} 34... Kc7 {[%clk 0:00:27.7]} 35. Rd1 {[%clk
0:01:56.5]} 35... Rd6 {[%clk 0:00:26.3]} 36. Rc1+ {[%clk 0:01:52]} 36... Kd7
{[%clk 0:00:25.3]} 37. Ra1 {[%clk 0:01:51.3]} 37... Ke6 {[%clk 0:00:24.1]} 38.
Ke3 {[%clk 0:01:48.7]} 38... g5 {[%clk 0:00:21.6]} 39. Ra4 {[%clk 0:01:40.6]}
39... h5 {[%clk 0:00:20.4]} 40. Ra7 {[%clk 0:01:38.8]} 40... f5 {[%clk
0:00:19.1]} 41. Rh7 {[%clk 0:01:36.5]} 41... f4+ {[%clk 0:00:18]} 42. gxf4
{[%clk 0:01:32]} 42... exf4+ {[%clk 0:00:16.1]} 43. Kf3 {[%clk 0:01:30.8]} 43...
Rd3+ {[%clk 0:00:14.8]} 44. Kg2 {[%clk 0:01:29.4]} 44... h4 {[%clk 0:00:13.6]}
45. Rh6+ {[%clk 0:01:25.3]} 45... Kf5 {[%clk 0:00:12.2]} 46. Rc6 {[%clk
0:01:20.6]} 46... f3+ {[%clk 0:00:11.3]} 47. Kh2 {[%clk 0:01:14.4]} 47... Rd2
{[%clk 0:00:10.4]} 48. Rc5+ {[%clk 0:01:10.8]} 48... Kf4 {[%clk 0:00:08.7]} 49.
Rc4+ {[%clk 0:01:09.1]} 49... Kf5 {[%clk 0:00:07.3]} 50. Kg1 {[%clk 0:01:07.7]}
50... Rd1+ {[%clk 0:00:05.2]} 51. Kh2 {[%clk 0:01:06.8]} 51... Rd2 {[%clk
0:00:03]} 52. Rc5+ {[%clk 0:00:59]} 52... Kf4 {[%clk 0:00:01.5]} 53. Kg1 {[%clk
0:00:56.1]} 1-0

[Event "Live Chess"]
[Site "Chess.com"]
[Date "2023.05.21"]
[Round "-"]
[White "Crowded_House"]
[Black "mirandaasilva"]
[Result "0-1"]
[WhiteElo "1673"]
[BlackElo "1638"]
[TimeControl "300"]
[EndTime "0:04:34 PDT"]
[Termination "mirandaasilva won by resignation"]

1. d4 {[%clk 0:04:57.8]} 1... d5 {[%clk 0:04:57.8]} 2. Bg5 {[%clk 0:04:56.9]}
2... c5 {[%clk 0:04:46.1]} 3. c3 {[%clk 0:04:54.7]} 3... cxd4 {[%clk 0:04:44]}
4. Qxd4 {[%clk 0:04:52.2]} 4... b6 {[%clk 0:04:43.9]} 5. Nf3 {[%clk 0:04:49.6]}
5... Bb7 {[%clk 0:04:42.8]} 6. e3 {[%clk 0:04:47]} 6... Nc6 {[%clk 0:04:38.1]}
7. Bb5 {[%clk 0:04:36]} 7... a6 {[%clk 0:04:31.1]} 8. Bxc6+ {[%clk 0:04:34]}
8... Bxc6 {[%clk 0:04:31]} 9. O-O {[%clk 0:04:29.1]} 9... Nf6 {[%clk 0:04:26.7]}
10. Ne5 {[%clk 0:04:27.1]} 10... Bb7 {[%clk 0:04:23.8]} 11. Rd1 {[%clk
0:04:16.3]} 11... e6 {[%clk 0:04:23.2]} 12. Nd2 {[%clk 0:03:57.7]} 12... Be7
{[%clk 0:04:22.1]} 13. Nb3 {[%clk 0:03:53.9]} 13... Rc8 {[%clk 0:04:19.6]} 14.
Rac1 {[%clk 0:03:31.1]} 14... O-O {[%clk 0:04:14.5]} 15. c4 {[%clk 0:03:24.5]}
15... dxc4 {[%clk 0:04:09.2]} 16. Qxd8 {[%clk 0:03:17.2]} 16... Rfxd8 {[%clk
0:04:09.1]} 17. Rxd8+ {[%clk 0:03:14.3]} 17... Bxd8 {[%clk 0:04:07.9]} 18. Rxc4
{[%clk 0:03:05.7]} 18... Rxc4 {[%clk 0:03:58]} 19. Nxc4 {[%clk 0:03:02.7]} 19...
h6 {[%clk 0:03:54.1]} 20. Bxf6 {[%clk 0:02:59.5]} 20... gxf6 {[%clk 0:03:52.6]}
21. Nd6 {[%clk 0:02:46.6]} 21... Bd5 {[%clk 0:03:14.1]} 22. e4 {[%clk
0:02:33.4]} 22... Bxb3 {[%clk 0:03:12.1]} 23. axb3 {[%clk 0:02:31.1]} 23... b5
{[%clk 0:03:12]} 24. Kf1 {[%clk 0:02:15.1]} 24... Kf8 {[%clk 0:03:03.4]} 25. Nb7
{[%clk 0:01:58.3]} 25... Bc7 {[%clk 0:02:48.1]} 26. Nc5 {[%clk 0:01:54]} 26...
a5 {[%clk 0:02:39.6]} 27. h3 {[%clk 0:01:47.5]} 27... Be5 {[%clk 0:02:34.4]} 28.
Nb7 {[%clk 0:01:38.3]} 28... a4 {[%clk 0:02:24.9]} 29. bxa4 {[%clk 0:01:35.3]}
29... bxa4 {[%clk 0:02:24.8]} 30. Nc5 {[%clk 0:01:32.5]} 30... Bxb2 {[%clk
0:02:16.9]} 31. Nxa4 {[%clk 0:01:31.4]} 31... Be5 {[%clk 0:02:16.7]} 32. Ke2
{[%clk 0:01:29.3]} 32... Ke7 {[%clk 0:02:16.6]} 33. Nc5 {[%clk 0:01:27.5]} 33...
Bd4 {[%clk 0:02:13.1]} 34. Nd3 {[%clk 0:01:24]} 34... Ba7 {[%clk 0:02:10.7]} 35.
f3 {[%clk 0:01:23.4]} 35... Bb8 {[%clk 0:02:08.4]} 36. Nf4 {[%clk 0:01:21]}
36... Bxf4 {[%clk 0:02:06.7]} 0-1

[Event "Live Chess"]
[Site "Chess.com"]
[Date "2023.05.21"]
[Round "-"]
[White "BillythekidFellowes"]
[Black "Doge_Dandolo"]
[Result "1-0"]
[WhiteElo "2030"]
[BlackElo "1887"]
[TimeControl "300"]
[EndTime "0:04:39 PDT"]
[Termination "BillythekidFellowes won by resignation"]

1. e4 {[%clk 0:04:59.4]} 1... c6 {[%clk 0:04:58.5]} 2. c4 {[%clk 0:04:58.3]}
2... d5 {[%clk 0:04:57.2]} 3. exd5 {[%clk 0:04:58]} 3... cxd5 {[%clk 0:04:56.4]}
4. d4 {[%clk 0:04:57.9]} 4... Nf6 {[%clk 0:04:54.1]} 5. Nc3 {[%clk 0:04:57.8]}
5... e6 {[%clk 0:04:53]} 6. Nf3 {[%clk 0:04:56.7]} 6... Bb4 {[%clk 0:04:50.5]}
7. Bg5 {[%clk 0:04:53.6]} 7... O-O {[%clk 0:04:46]} 8. Bd3 {[%clk 0:04:49.2]}
8... dxc4 {[%clk 0:04:44.9]} 9. Bxc4 {[%clk 0:04:48.1]} 9... Bd7 {[%clk
0:04:42.9]} 10. O-O {[%clk 0:04:46.4]} 10... Bc6 {[%clk 0:04:41.9]} 11. Ne5
{[%clk 0:04:43.2]} 11... h6 {[%clk 0:04:38.3]} 12. Bh4 {[%clk 0:04:41]} 12...
Bxc3 {[%clk 0:04:36.4]} 13. bxc3 {[%clk 0:04:37.9]} 13... Bd5 {[%clk 0:04:33.5]}
14. Bd3 {[%clk 0:04:35.2]} 14... Nbd7 {[%clk 0:04:28.4]} 15. f4 {[%clk
0:04:32.4]} 15... Qc7 {[%clk 0:04:25]} 16. c4 {[%clk 0:04:27.6]} 16... Bc6
{[%clk 0:04:23.5]} 17. Bc2 {[%clk 0:04:10]} 17... Rac8 {[%clk 0:04:11.4]} 18.
Qd3 {[%clk 0:04:06.5]} 18... a6 {[%clk 0:04:04]} 19. Nxd7 {[%clk 0:04:02.7]} 1-0

[Event "Live Chess"]
[Site "Chess.com"]
[Date "2023.05.21"]
[Round "-"]
[White "LutherSullivan"]
[Black "JoeRoot66"]
[Result "0-1"]
[WhiteElo "2138"]
[BlackElo "1937"]
[TimeControl "300"]
[EndTime "0:04:59 PDT"]
[Termination "JoeRoot66 won on time"]

1. e4 {[%clk 0:04:57.8]} 1... c6 {[%clk 0:04:59.6]} 2. d4 {[%clk 0:04:56.3]}
2... d5 {[%clk 0:04:59.5]} 3. Nd2 {[%clk 0:04:55.6]} 3... dxe4 {[%clk
0:04:59.4]} 4. Nxe4 {[%clk 0:04:55.1]} 4... Nf6 {[%clk 0:04:59.1]} 5. Nxf6+
{[%clk 0:04:54.1]} 5... exf6 {[%clk 0:04:59]} 6. c3 {[%clk 0:04:53.4]} 6... Bd6
{[%clk 0:04:58.6]} 7. Bd3 {[%clk 0:04:52]} 7... O-O {[%clk 0:04:58.5]} 8. Qc2
{[%clk 0:04:51.1]} 8... Re8+ {[%clk 0:04:57.6]} 9. Ne2 {[%clk 0:04:50]} 9... h5
{[%clk 0:04:57.3]} 10. Be3 {[%clk 0:04:47.5]} 10... Nd7 {[%clk 0:04:55]} 11.
O-O-O {[%clk 0:04:46.6]} 11... Nf8 {[%clk 0:04:51.4]} 12. Kb1 {[%clk 0:04:44.9]}
12... Bg4 {[%clk 0:04:48.3]} 13. Nf4 {[%clk 0:04:40.5]} 13... Bxd1 {[%clk
0:04:44.2]} 14. Qxd1 {[%clk 0:04:36.7]} 14... g6 {[%clk 0:04:41.7]} 15. g4
{[%clk 0:04:33.6]} 15... h4 {[%clk 0:04:36.6]} 16. Qb3 {[%clk 0:04:18.4]} 16...
Bxf4 {[%clk 0:04:30.6]} 17. Bxf4 {[%clk 0:04:15.7]} 17... Qd5 {[%clk 0:04:29.9]}
18. Qxd5 {[%clk 0:04:09.3]} 18... cxd5 {[%clk 0:04:29.8]} 19. f3 {[%clk
0:04:04.5]} 19... Ne6 {[%clk 0:04:28]} 20. Bd2 {[%clk 0:04:02.9]} 20... g5
{[%clk 0:04:27.3]} 21. Kc2 {[%clk 0:03:59.8]} 21... Rac8 {[%clk 0:04:25.1]} 22.
Kb3 {[%clk 0:03:57.2]} 22... a6 {[%clk 0:04:20.7]} 23. a4 {[%clk 0:03:50]} 23...
Nc7 {[%clk 0:04:11.2]} 24. Bf5 {[%clk 0:03:47.7]} 24... Ne6 {[%clk 0:04:03.7]}
25. Rf1 {[%clk 0:03:37.1]} 25... Rc7 {[%clk 0:03:54]} 26. Re1 {[%clk 0:03:10.7]}
26... Rce7 {[%clk 0:03:47]} 27. Rf1 {[%clk 0:02:59.3]} 27... Nf4 {[%clk
0:03:44.2]} 28. Bxf4 {[%clk 0:01:44.8]} 28... gxf4 {[%clk 0:03:44.1]} 29. Rg1
{[%clk 0:01:37.8]} 29... Re2 {[%clk 0:03:31.1]} 30. g5 {[%clk 0:01:35.1]} 30...
Kg7 {[%clk 0:03:26.2]} 31. h3 {[%clk 0:01:23.7]} 31... Rf2 {[%clk 0:03:20.1]}
32. g6 {[%clk 0:01:15.6]} 32... Ree2 {[%clk 0:03:11.3]} 33. gxf7+ {[%clk
0:01:07]} 33... Kxf7 {[%clk 0:03:09.8]} 34. Kb4 {[%clk 0:01:05.8]} 34... b6
{[%clk 0:03:02.5]} 35. b3 {[%clk 0:01:02.9]} 35... Rg2 {[%clk 0:02:51.6]} 36.
Rc1 {[%clk 0:00:55.4]} 36... Rg5 {[%clk 0:02:47.6]} 37. Bd3 {[%clk 0:00:50.8]}
37... Re3 {[%clk 0:02:45.9]} 38. Bxa6 {[%clk 0:00:44.1]} 38... Rxf3 {[%clk
0:02:42.8]} 39. Bc8 {[%clk 0:00:41.2]} 39... f5 {[%clk 0:02:37.3]} 40. Re1
{[%clk 0:00:34.3]} 40... Re3 {[%clk 0:02:35]} 41. Rf1 {[%clk 0:00:27.7]} 41...
f3 {[%clk 0:02:32.6]} 42. Bb7 {[%clk 0:00:22]} 42... f4 {[%clk 0:02:30.5]} 43.
Kb5 {[%clk 0:00:18.8]} 43... Rxc3 {[%clk 0:02:26]} 44. b4 {[%clk 0:00:15.1]}
44... Rd3 {[%clk 0:02:14]} 45. Kxb6 {[%clk 0:00:10.8]} 45... Rg3 {[%clk
0:02:09.4]} 46. Bxd5+ {[%clk 0:00:05.2]} 46... Ke7 {[%clk 0:02:09.1]} 0-1

[Event "Live Chess"]
[Site "Chess.com"]
[Date "2023.05.21"]
[Round "-"]
[White "HoarseyHorsey"]
[Black "Biranidun"]
[Result "0-1"]
[WhiteElo "1447"]
[BlackElo "2571"]
[TimeControl "300"]
[EndTime "0:05:01 PDT"]
[Termination "Biranidun won by resignation"]

1. d4 {[%clk 0:04:58]} 1... Nf6 {[%clk 0:04:58.8]} 2. c4 {[%clk 0:04:57.3]} 2...
g6 {[%clk 0:04:57.1]} 3. f3 {[%clk 0:04:55.5]} 3... Bg7 {[%clk 0:04:56.2]} 4.
Nc3 {[%clk 0:04:54.9]} 4... d6 {[%clk 0:04:56.1]} 5. e4 {[%clk 0:04:54.2]} 5...
O-O {[%clk 0:04:54.9]} 6. Nge2 {[%clk 0:04:53.4]} 6... c5 {[%clk 0:04:54.2]} 7.
d5 {[%clk 0:04:51.4]} 7... e6 {[%clk 0:04:53.2]} 8. Be3 {[%clk 0:04:49]} 8...
exd5 {[%clk 0:04:51.8]} 9. cxd5 {[%clk 0:04:48.9]} 9... a6 {[%clk 0:04:43.9]}
10. a4 {[%clk 0:04:44.3]} 10... Nbd7 {[%clk 0:04:43.1]} 11. Ng3 {[%clk
0:04:41.9]} 11... h5 {[%clk 0:04:42]} 12. Bg5 {[%clk 0:04:36.2]} 12... Qb6
{[%clk 0:04:39]} 13. Qd2 {[%clk 0:04:34.8]} 13... Nh7 {[%clk 0:04:37.7]} 14. Bh4
{[%clk 0:04:32.8]} 14... Ne5 {[%clk 0:04:31.5]} 15. Be2 {[%clk 0:04:29.9]} 15...
c4 {[%clk 0:04:21.6]} 16. O-O-O {[%clk 0:04:18]} 16... Qb3 {[%clk 0:04:16.9]}
17. Rhf1 {[%clk 0:04:05.3]} 17... b5 {[%clk 0:04:14.9]} 18. f4 {[%clk
0:04:04.1]} 18... Nd3+ {[%clk 0:04:09.2]} 19. Bxd3 {[%clk 0:04:03]} 19... cxd3
{[%clk 0:04:09.1]} 20. Qxd3 {[%clk 0:03:57.5]} 20... b4 {[%clk 0:04:08]} 21. Qc2
{[%clk 0:03:50.7]} 21... Qxc2+ {[%clk 0:04:06.2]} 22. Kxc2 {[%clk 0:03:49.9]}
22... bxc3 {[%clk 0:04:06.1]} 23. bxc3 {[%clk 0:03:49.1]} 23... Bd7 {[%clk
0:04:05.7]} 24. Rb1 {[%clk 0:03:48]} 24... Bxa4+ {[%clk 0:04:03.4]} 25. Kd3
{[%clk 0:03:45.9]} 25... Rfc8 {[%clk 0:04:02]} 26. c4 {[%clk 0:03:42]} 26...
Rab8 {[%clk 0:03:55.8]} 27. Be7 {[%clk 0:03:37.3]} 27... Bf8 {[%clk 0:03:39.3]}
28. Bh4 {[%clk 0:03:28]} 28... Bb3 {[%clk 0:03:36.7]} 29. Kd4 {[%clk 0:03:13.9]}
29... Rxc4+ {[%clk 0:03:34.8]} 30. Kd3 {[%clk 0:03:12.1]} 30... Rcb4 {[%clk
0:03:31.5]} 31. e5 {[%clk 0:03:04.2]} 31... Bc4+ {[%clk 0:03:29.9]} 32. Kc3
{[%clk 0:03:02.3]} 0-1

[Event "Live Chess"]
[Site "Chess.com"]
[Date "2023.05.21"]
[Round "-"]
[White "CeladonFish"]
[Black "AttackingSnowLeopard"]
[Result "0-1"]
[WhiteElo "1073"]
[BlackElo "2191"]
[TimeControl "300"]
[EndTime "0:05:06 PDT"]
[Termination "AttackingSnowLeopard won by resignation"]

1. d4 {[%clk 0:04:57.5]} 1... d5 {[%clk 0:04:58.8]} 2. c4 {[%clk 0:04:56.1]}
2... c6 {[%clk 0:04:57.3]} 3. Nc3 {[%clk 0:04:52.9]} 3... Nf6 {[%clk 0:04:56.2]}
4. cxd5 {[%clk 0:04:51.6]} 4... cxd5 {[%clk 0:04:55.2]} 5. Bf4 {[%clk
0:04:49.6]} 5... Nc6 {[%clk 0:04:54.4]} 6. Nf3 {[%clk 0:04:48.8]} 6... Bf5
{[%clk 0:04:53.5]} 7. e3 {[%clk 0:04:47.8]} 7... e6 {[%clk 0:04:53]} 8. Bd3
{[%clk 0:04:45.9]} 8... Bxd3 {[%clk 0:04:52.1]} 9. Qxd3 {[%clk 0:04:45.1]} 9...
Bd6 {[%clk 0:04:51.8]} 10. Ne5 {[%clk 0:04:42.7]} 10... O-O {[%clk 0:04:48.5]}
11. Nb5 {[%clk 0:04:39.6]} 11... Bxe5 {[%clk 0:04:41.5]} 12. Bxe5 {[%clk
0:04:33.7]} 12... Nxe5 {[%clk 0:04:37.6]} 13. dxe5 {[%clk 0:04:33.1]} 13... Qa5+
{[%clk 0:04:37]} 14. Nc3 {[%clk 0:04:29.6]} 14... Ne4 {[%clk 0:04:35.8]} 15. Rc1
{[%clk 0:04:25.3]} 15... Rac8 {[%clk 0:04:33.7]} 16. O-O {[%clk 0:04:22.9]}
16... Nxc3 {[%clk 0:04:32.3]} 17. bxc3 {[%clk 0:04:21.8]} 17... Rc4 {[%clk
0:04:31.1]} 18. Rc2 {[%clk 0:04:17.5]} 18... Qc7 {[%clk 0:04:28.5]} 19. Rb1
{[%clk 0:04:16.1]} 19... b6 {[%clk 0:04:25]} 20. f4 {[%clk 0:04:11.8]} 20... Rc8
{[%clk 0:04:22.3]} 21. Rb3 {[%clk 0:04:09.6]} 21... Qc5 {[%clk 0:04:20.9]} 22.
Kf2 {[%clk 0:04:06.5]} 22... a5 {[%clk 0:04:19]} 23. Kf3 {[%clk 0:04:03.7]}
23... a4 {[%clk 0:04:17.2]} 24. Ra3 {[%clk 0:03:58.2]} 24... b5 {[%clk
0:04:16.6]} 25. Ke2 {[%clk 0:03:40.7]} 25... g6 {[%clk 0:04:07.5]} 26. Qd1
{[%clk 0:03:23.3]} 26... Qxa3 {[%clk 0:03:59]} 0-1